bitfinex/quotes_BTCUSD_20241003
["timestamp","ask_amount","ask_price","bid_price","bid_amount"]
[1727997814661,0.079036,60880.0,60878.0,0.164262]
[1727997815090,0.079036,60880.0,60877.0,0.007]
[1727997815305,0.079036,60880.0,60877.0,0.003]
[1727997815525,0.079036,60880.0,60878.0,0.004]
[1727997815983,0.079036,60880.0,60879.0,0.004]
[1727997816606,0.079036,60880.0,60878.0,0.004]
[1727997816878,0.079036,60880.0,60878.0,0.007]
[1727997817290,0.079036,60880.0,60877.0,0.164264]
[1727997817501,0.079036,60880.0,60879.0,0.004]
[1727997818560,0.079036,60880.0,60879.0,0.16826]
[1727997818772,0.079036,60880.0,60879.0,0.16626]
[1727997819651,0.079036,60880.0,60879.0,0.35293027]
[1727997819865,0.079036,60880.0,60879.0,0.35693027]
[1727997820303,0.079036,60880.0,60879.0,0.35493027]
[1727997820756,0.079036,60880.0,60879.0,0.35893027]
[1727997823464,0.001636,60880.0,60879.0,0.52211698]
[1727997824759,0.001636,60880.0,60879.0,0.52311698]
[1727997825002,0.001636,60880.0,60879.0,0.52211698]
[1727997828084,0.001636,60880.0,60879.0,0.54511698]
[1727997835703,0.001636,60880.0,60879.0,0.54585978]
[1727997838837,0.080036,60880.0,60879.0,0.33618951]
[1727997839057,0.080036,60880.0,60879.0,0.1730028]
[1727997839276,0.12921982,60880.0,60879.0,0.1730028]
[1727997840266,0.12921982,60880.0,60879.0,0.52285978]
[1727997840267,0.05081982,60880.0,60879.0,0.52285978]
[1727997840479,0.001636,60880.0,60879.0,0.54585978]
[1727997845536,0.082736,60880.0,60879.0,0.1730028]
[1727997846435,0.15660926,60880.0,60879.0,0.1730028]
[1727997846908,0.15660926,60880.0,60879.0,0.0087428]
[1727997847126,0.36019142,60880.0,60879.0,0.0087428]
[1727997847342,0.52444842,60880.0,60879.0,0.0087428]
[1727997848005,0.62295723,60880.0,60879.0,0.0047428]
[1727997848437,0.62295723,60880.0,60879.0,0.0017428]
[1727997848438,0.62295285,60880.0,60879.0,0.0017428]
[1727997848657,0.52444842,60880.0,60879.0,0.0017428]
[1727997849127,0.32086984,60880.0,60879.0,0.0017428]
[1727997849396,0.62286372,60880.0,60879.0,0.0017428]
[1727997850047,0.62286372,60880.0,60879.0,0.0027428]
[1727997850493,0.45860672,60880.0,60879.0,0.0027428]
[1727997850707,0.36010229,60880.0,60879.0,0.0027428]
[1727997850920,0.52435929,60880.0,60879.0,0.0027428]
[1727997851146,0.72130403,60880.0,60879.0,0.0027428]
[1727997851367,0.72130845,60880.0,60879.0,0.0027428]
[1727997853144,0.62280024,60880.0,60879.0,0.0027428]
[1727997854028,0.62280024,60880.0,60879.0,0.0017428]
[1727997854237,0.62280024,60880.0,60879.0,0.0007428]
[1727997854486,0.41937491,60880.0,60879.0,0.0007428]
[1727997854709,0.49325524,60880.0,60879.0,0.0007428]
[1727997854926,0.41937491,60880.0,60879.0,0.0007428]
[1727997855111,0.45034906,60880.0,60879.0,0.0007428]
[1727997855573,0.45034906,60880.0,60879.0,0.0017428]
[1727997856220,0.45034906,60880.0,60879.0,0.0027428]
[1727997857919,0.54885174,60880.0,60879.0,0.0027428]
[1727997858374,0.32087592,60880.0,60879.0,0.0027428]
[1727997858817,0.15661892,60880.0,60879.0,0.1670028]
[1727997859048,0.001636,60880.0,60879.0,0.1670028]
[1727997859271,0.05089909,60880.0,60879.0,0.1670028]
[1727997859490,0.001636,60880.0,60879.0,0.1670028]
[1727997859930,0.001636,60880.0,60879.0,0.33018951]
[1727997860171,0.12313127,60885.0,60882.0,0.023]
[1727997860415,0.12313127,60885.0,60879.0,0.24352951]
[1727997860416,0.12313127,60885.0,60884.0,0.31187502]
[1727997860601,0.12313127,60885.0,60884.0,0.47506173]
[1727997860846,0.12313127,60885.0,60884.0,0.47580453]
[1727997861034,0.04926309,60888.0,60887.0,0.164238]
[1727997861275,0.04926309,60888.0,60887.0,0.47305373]
[1727997861723,0.04926309,60888.0,60887.0,0.53715527]
[1727997861943,0.001636,60897.0,60888.0,0.023]
[1727997862165,0.001636,60897.0,60890.0,0.16423]
[1727997862385,0.001636,60897.0,60896.0,0.164214]
[1727997862600,0.001636,60897.0,60896.0,0.35094456]
[1727997863037,0.001636,60897.0,60896.0,0.35168736]
[1727997863688,0.001636,60897.0,60896.0,0.35768736]
[1727997864155,0.002636,60897.0,60896.0,0.36368736]
[1727997864842,0.166847,60897.0,60896.0,0.0127428]
[1727997865723,0.166847,60897.0,60896.0,0.0067428]
[1727997865724,0.337947,60897.0,60896.0,0.0067428]
[1727997865945,0.54052293,60897.0,60896.0,0.0067428]
[1727997866183,0.54352293,60897.0,60896.0,0.0067428]
[1727997866398,0.54252293,60897.0,60896.0,0.0007428]
[1727997866611,0.53952293,60897.0,60896.0,0.0007428]
[1727997867057,0.54252293,60897.0,60896.0,0.0007428]
[1727997867515,0.53952293,60897.0,60896.0,0.0007428]
[1727997867740,0.53952293,60897.0,60896.0,0.0017428]
[1727997867741,0.54152293,60897.0,60896.0,0.0017428]
[1727997868013,0.54452293,60897.0,60896.0,0.0017428]
[1727997868233,0.76021002,60897.0,60896.0,0.0017428]
[1727997868451,0.7566093,60897.0,60896.0,0.0017428]
[1727997868919,0.8566093,60897.0,60896.0,0.0017428]
[1727997869387,0.8546093,60897.0,60896.0,0.0007428]
[1727997869873,1.00416812,60897.0,60896.0,0.0017428]
[1727997870088,0.8566093,60897.0,60896.0,0.0017428]
[1727997870317,0.8646093,60897.0,60896.0,0.0017428]
[1727997870565,0.8666093,60897.0,60896.0,0.0027428]
[1727997870783,0.8686093,60897.0,60896.0,0.0027428]
[1727997871000,0.8566093,60897.0,60896.0,0.0007428]
[1727997871221,0.8646093,60897.0,60896.0,0.0017428]
[1727997871441,0.8666093,60897.0,60896.0,0.0027428]
[1727997871659,0.8566093,60897.0,60896.0,0.0017428]
[1727997871902,0.245362,60878.0,60877.0,0.24634789]
[1727997872127,0.29454143,60878.0,60877.0,0.24634789]
[1727997872565,0.13027943,60878.0,60871.0,0.164281]
[1727997872779,0.164269,60876.0,60871.0,0.164281]
[1727997873275,0.164273,60875.0,60871.0,0.00422291]
[1727997873497,0.164273,60875.0,60871.0,0.16850391]
[1727997873704,0.164273,60875.0,60871.0,0.169281]
[1727997874151,0.164267,60877.0,60872.0,0.164279]
[1727997874649,0.328542,60875.0,60871.0,0.009]
[1727997874852,0.164277,60873.0,60871.0,0.009]
[1727997875487,0.329542,60875.0,60871.0,0.009]
[1727997875488,0.492815,60875.0,60871.0,0.009]
[1727997875760,0.492815,60875.0,60870.0,0.000818]
[1727997875973,0.492815,60875.0,60872.0,0.002]
[1727997876184,0.54198051,60875.0,60872.0,0.002]
[1727997876406,0.54198051,60875.0,60870.0,0.165102]
[1727997876627,0.492815,60875.0,60870.0,0.165102]
[1727997876842,0.492815,60875.0,60871.0,0.003]
[1727997877321,0.04916551,60876.0,60870.0,0.000818]
[1727997877322,0.241381,60871.0,60870.0,0.000818]
[1727997877764,0.29053165,60871.0,60870.0,0.000818]
[1727997878677,0.241381,60871.0,60870.0,0.000818]
[1727997878923,0.242381,60871.0,60870.0,0.000818]
[1727997880105,0.26813459,60871.0,60870.0,0.000818]
[1727997880321,0.26813459,60871.0,60870.0,0.007818]
[1727997899113,0.26813459,60871.0,60870.0,0.000818]
[1727997899319,0.26913459,60871.0,60870.0,0.000818]
[1727997899532,0.26813459,60871.0,60870.0,0.000818]
[1727997899718,0.26713459,60871.0,60870.0,0.000818]
[1727997899977,0.26813459,60871.0,60870.0,0.000818]
[1727997900248,0.27013459,60871.0,60870.0,0.000818]
[1727997900457,0.27413459,60871.0,60870.0,0.000818]
[1727997900652,0.27113459,60871.0,60870.0,0.000818]
[1727997901020,0.27013459,60871.0,60870.0,0.000818]
[1727997901251,0.19303459,60871.0,60870.0,0.000818]
[1727997901453,0.19603459,60871.0,60870.0,0.000818]
[1727997902779,0.19303459,60871.0,60870.0,0.000818]
[1727997903143,0.19503459,60871.0,60870.0,0.000818]
[1727997903549,0.19003459,60871.0,60870.0,0.000818]
[1727997904411,0.02575359,60871.0,60870.0,0.000818]
[1727997904682,0.02575359,60871.0,60870.0,0.165102]
[1727997904933,0.02575359,60871.0,60870.0,0.340902]
[1727997905191,0.34440458,60880.0,60873.0,0.164276]
[1727997905410,0.34440458,60880.0,60877.0,0.12270117]
[1727997905411,0.41060689,60880.0,60877.0,0.12270117]
[1727997905651,0.24634789,60880.0,60877.0,0.12270117]
[1727997905895,0.328512,60881.0,60876.0,0.164267]
[1727997906129,0.164258,60880.0,60876.0,0.164267]
[1727997906722,0.164267,60877.0,60872.0,0.164278]
[1727997906973,0.164267,60877.0,60870.0,0.176618]
[1727997906974,0.12270117,60878.0,60870.0,0.000818]
[1727997907193,0.164281,60871.0,60870.0,0.000818]
[1727997908537,0.21679423,60871.0,60870.0,0.000818]
[1727997909399,0.21779423,60871.0,60870.0,0.000818]
[1727997909638,0.26586612,60871.0,60870.0,0.000818]
[1727997910538,0.21679423,60871.0,60870.0,0.000818]
[1727997912728,0.41669992,60871.0,60870.0,0.000818]
[1727997912977,0.44245462,60871.0,60870.0,0.000818]
[1727997913916,0.5150289,60871.0,60870.0,0.000818]
[1727997914770,0.41669992,60871.0,60870.0,0.000818]
[1727997915628,0.53984453,60871.0,60870.0,0.000818]
[1727997916264,0.37556353,60871.0,60870.0,0.000818]
[1727997916540,0.37556353,60871.0,60870.0,0.242102]
[1727997916541,0.17218996,60871.0,60870.0,0.242102]
[1727997916772,0.09939358,60871.0,60870.0,0.242102]
[1727997916989,0.001,60871.0,60870.0,0.242102]
[1727997917447,0.19678157,60874.0,60873.0,0.164276]
[1727997918089,0.07379638,60874.0,60873.0,0.164276]
[1727997918302,0.04920051,60877.0,60873.0,0.164276]
[1727997918523,0.04920051,60877.0,60876.0,0.164268]
[1727997919689,0.09841823,60877.0,60876.0,0.164268]
[1727997919933,0.09941823,60877.0,60876.0,0.164268]
[1727997920161,0.05020051,60877.0,60876.0,0.170268]
[1727997920609,0.09941823,60877.0,60876.0,0.170268]
[1727997921258,0.05020051,60877.0,60876.0,0.170268]
[1727997922176,0.09941823,60877.0,60876.0,0.006]
[1727997922420,0.05020051,60877.0,60870.0,0.000818]
[1727997922657,0.07381177,60872.0,60870.0,0.000818]
[1727997922891,0.164281,60871.0,60870.0,0.000818]
[1727997924045,0.21348967,60871.0,60870.0,0.000818]
[1727997924269,0.164281,60871.0,60870.0,0.000818]
[1727997924735,0.0492082,60871.0,60870.0,0.165101]
[1727997924962,0.04920814,60871.0,60870.0,0.57447]
[1727997925182,0.2460379,60874.0,60870.0,0.091618]
[1727997925452,0.2460388,60874.0,60872.0,0.164277]
[1727997925684,0.2460388,60874.0,60873.0,0.164276]
[1727997926128,0.1476231,60874.0,60873.0,0.164276]
[1727997926346,0.1486231,60874.0,60873.0,0.164276]
[1727997926562,0.1476231,60874.0,60873.0,0.164276]
[1727997926793,0.22243498,60874.0,60873.0,0.003]
[1727997927021,0.51356424,60874.0,60873.0,0.003]
[1727997927434,0.51356266,60874.0,60873.0,0.003]
[1727997927647,0.51256266,60874.0,60873.0,0.003]
[1727997928068,0.46335362,60874.0,60873.0,0.003]
[1727997928495,0.46335362,60874.0,60870.0,0.000818]
[1727997928724,0.0492047,60871.0,60870.0,0.000818]
[1727997929143,0.0492047,60871.0,60870.0,0.165102]
[1727997929601,0.0492047,60871.0,60870.0,0.000818]
[1727997929825,0.23808805,60871.0,60870.0,0.000818]
[1727997930041,0.36442961,60871.0,60870.0,0.000818]
[1727997930257,0.46380256,60871.0,60870.0,0.000818]
[1727997930474,0.3654749,60871.0,60870.0,0.000818]
[1727997930660,0.3654749,60871.0,60870.0,0.002818]
[1727997931138,0.3644749,60871.0,60870.0,0.002818]
[1727997931821,0.48748305,60871.0,60870.0,0.002818]
[1727997932032,0.48748305,60871.0,60870.0,0.000818]
[1727997932240,0.48748305,60871.0,60870.0,0.002818]
[1727997932451,0.3654749,60871.0,60870.0,0.002818]
[1727997932664,0.3644749,60871.0,60870.0,0.000818]
[1727997933114,0.3664749,60871.0,60870.0,0.000818]
[1727997933327,0.48948305,60871.0,60870.0,0.000818]
[1727997933536,0.46289359,60871.0,60870.0,0.000818]
[1727997933753,0.164281,60871.0,60870.0,0.000818]
[1727997933975,0.48852993,60871.0,60870.0,0.000818]
[1727997934399,0.36552178,60871.0,60870.0,0.000818]
[1727997934613,0.41803694,60871.0,60870.0,0.000818]
[1727997935043,0.41703694,60871.0,60870.0,0.000818]
[1727997935463,0.41903694,60871.0,60870.0,0.000818]
[1727997935898,0.41703694,60871.0,60870.0,0.000818]
[1727997936115,0.41803694,60871.0,60870.0,0.000818]
[1727997936317,0.21779616,60871.0,60870.0,0.000818]
[1727997937122,0.165281,60871.0,60870.0,0.000818]
[1727997937672,0.26370681,60871.0,60870.0,0.000818]
[1727997937884,0.36550814,60871.0,60870.0,0.000818]
[1727997938096,0.165281,60871.0,60870.0,0.000818]
[1727997939285,0.26370739,60871.0,60870.0,0.000818]
[1727997939529,0.46383884,60871.0,60870.0,0.000818]
[1727997939806,0.165281,60871.0,60870.0,0.000818]
[1727997940054,0.36534182,60871.0,60870.0,0.000818]
[1727997941752,0.44394182,60871.0,60870.0,0.000818]
[1727997942035,0.68344443,60871.0,60870.0,0.000818]
[1727997943014,0.49647149,60871.0,60870.0,0.000818]
[1727997943249,0.41787149,60871.0,60870.0,0.000818]
[1727997943747,0.48838306,60871.0,60870.0,0.000818]
[1727997944745,0.48832122,60871.0,60870.0,0.000818]
[1727997946347,0.36527834,60871.0,60870.0,0.000818]
[1727997946780,0.49641134,60871.0,60870.0,0.000818]
[1727997947437,0.75589805,60871.0,60870.0,0.000818]
[1727997947647,0.90354951,60871.0,60870.0,0.000818]
[1727997947866,0.75589805,60871.0,60870.0,0.000818]
[1727997948994,0.90354266,60871.0,60870.0,0.000818]
[1727997949431,0.55590071,60871.0,60870.0,0.000818]
[1727997949643,0.90298183,60871.0,60870.0,0.000818]
[1727997950330,1.03455412,60871.0,60870.0,0.000818]
[1727997952789,0.75533963,60871.0,60870.0,0.000818]
[1727997952997,1.03427656,60871.0,60870.0,0.000818]
[1727997953208,1.18192124,60871.0,60870.0,0.000818]
[1727997954491,0.90298431,60871.0,60870.0,0.000818]
[1727997954710,0.49585292,60871.0,60870.0,0.000818]
[1727997955150,0.41725292,60871.0,60870.0,0.000818]
[1727997958241,0.54028066,60871.0,60870.0,0.000818]
[1727997958667,0.41725292,60871.0,60870.0,0.000818]
[1727997958905,0.54028066,60871.0,60870.0,0.000818]
[1727997960656,0.5660358,60871.0,60870.0,0.000818]
[1727997960872,0.44300806,60871.0,60870.0,0.000818]
[1727997961093,0.40174142,60871.0,60870.0,0.257002]
[1727997961328,0.02675514,60871.0,60870.0,0.332102]
[1727997961560,0.001,60871.0,60870.0,0.332102]
[1727997961818,0.001,60871.0,60870.0,0.33642647]
[1727997963138,0.0738098,60872.0,60871.0,0.164281]
[1727997963368,0.001,60871.0,60870.0,0.34542647]
[1727997963781,0.001,60871.0,60870.0,0.33642647]
[1727997964250,0.12298741,60878.0,60875.0,0.164268]
[1727997964874,0.00381541,60877.0,60875.0,0.164268]
[1727997965082,0.00381541,60877.0,60873.0,0.328549]
[1727997965289,0.00381541,60877.0,60875.0,0.164269]
[1727997965658,0.00381541,60877.0,60876.0,0.164268]
[1727997966094,0.00381541,60877.0,60876.0,0.335368]
[1727997966484,0.00481541,60877.0,60876.0,0.335368]
[1727997966688,0.00481541,60877.0,60876.0,0.49855471]
[1727997966868,0.00381541,60877.0,60876.0,0.49855471]
[1727997967286,0.00481541,60877.0,60876.0,0.50155471]
[1727997967497,0.00381541,60877.0,60876.0,0.50155471]
[1727997967705,0.00381541,60877.0,60876.0,0.49855471]
[1727997968035,0.00381541,60877.0,60876.0,0.50455471]
[1727997968983,0.00481541,60877.0,60876.0,0.50455471]
[1727997969455,0.00481541,60877.0,60876.0,0.265068]
[1727997972268,0.00481541,60877.0,60876.0,0.170268]
[1727997972481,0.00481541,60877.0,60876.0,0.006]
[1727997972932,0.00481541,60877.0,60876.0,0.170268]
[1727997973179,0.00481541,60877.0,60876.0,0.006]
[1727997973388,0.00381541,60877.0,60876.0,0.164268]
[1727997973603,0.00381541,60877.0,60875.0,0.164269]
[1727997973826,0.00481541,60877.0,60876.0,0.004]
[1727997974701,0.00481541,60877.0,60871.0,0.328561]
[1727997974904,0.00481541,60877.0,60875.0,0.004]
[1727997975368,0.00381541,60877.0,60875.0,0.004]
[1727997975591,0.00481541,60877.0,60875.0,0.004]
[1727997976337,0.00481541,60877.0,60876.0,0.164268]
[1727997976557,0.00481541,60877.0,60876.0,0.49855471]
[1727997977044,0.00481541,60877.0,60876.0,0.52355471]
[1727997977274,0.00481541,60877.0,60876.0,0.52555471]
[1727997977923,0.00481541,60877.0,60876.0,0.52155471]
[1727997978107,0.00481541,60877.0,60876.0,0.52555471]
[1727997978397,0.00381541,60877.0,60876.0,0.52555471]
[1727997978631,0.00481541,60877.0,60876.0,0.52355471]
[1727997978821,0.24634789,60888.0,60887.0,0.164238]
[1727997979098,0.24634789,60888.0,60887.0,0.69259765]
[1727997979296,0.24634789,60895.0,60887.0,0.52835965]
[1727997979556,0.24634789,60895.0,60893.0,0.164221]
[1727997980016,0.001636,60896.0,60893.0,0.164221]
[1727997981386,0.001636,60896.0,60895.0,0.164217]
[1727997982749,0.001636,60896.0,60895.0,0.165217]
[1727997983217,0.001636,60896.0,60895.0,0.164217]
[1727997983514,0.001636,60896.0,60895.0,0.168217]
[1727997983515,0.002636,60896.0,60895.0,0.168217]
[1727997983743,0.002636,60896.0,60895.0,0.166217]
[1727997983983,0.002636,60896.0,60895.0,0.169217]
[1727997984425,0.002636,60896.0,60895.0,0.166217]
[1727997984861,0.002636,60896.0,60895.0,0.170217]
[1727997985301,0.001636,60896.0,60895.0,0.168217]
[1727997985733,0.001636,60896.0,60895.0,0.266917]
[1727997985983,0.002636,60896.0,60895.0,0.51060371]
[1727997986214,0.002636,60896.0,60895.0,0.53360371]
[1727997986688,0.002636,60896.0,60895.0,0.52860371]
[1727997986689,0.001636,60896.0,60895.0,0.52860371]
[1727997987112,0.002636,60896.0,60895.0,0.52960371]
[1727997987388,0.002636,60896.0,60895.0,0.62960371]
[1727997987582,0.002636,60896.0,60895.0,0.63960371]
[1727997988032,0.002636,60896.0,60895.0,0.62960371]
[1727997988255,0.001636,60896.0,60895.0,0.62860371]
[1727997988671,0.002636,60896.0,60895.0,0.6338063]
[1727997988879,0.001636,60896.0,60895.0,0.6328063]
[1727997989094,0.002636,60896.0,60895.0,0.6338063]
[1727997989742,0.001636,60896.0,60895.0,0.6468063]
[1727997990019,0.002636,60896.0,60895.0,0.34240371]
[1727997990251,0.002636,60896.0,60895.0,0.015]
[1727997990503,0.16685,60896.0,60895.0,0.015]
[1727997990720,0.002636,60896.0,60895.0,0.001]
[1727997990937,0.002636,60896.0,60895.0,0.015]
[1727997991384,0.16585,60896.0,60895.0,0.014]
[1727997991617,0.16685,60896.0,60895.0,0.015]
[1727997992244,0.16685,60896.0,60895.0,0.001]
[1727997992463,0.16585,60896.0,60895.0,0.006]
[1727997992691,0.16685,60896.0,60895.0,0.007]
[1727997992905,0.24275,60896.0,60895.0,0.007]
[1727998005748,0.26849515,60896.0,60895.0,0.007]
[1727998006012,0.67079773,60896.0,60895.0,0.007]
[1727998006255,0.84986789,60896.0,60895.0,0.007]
[1727998006756,0.84986789,60896.0,60895.0,0.001]
[1727998006995,0.97246208,60896.0,60895.0,0.001]
[1727998007225,0.164235,60888.0,60887.0,0.24634789]
[1727998007654,0.164243,60886.0,60882.0,0.164251]
[1727998007863,0.164244,60885.0,60880.0,0.164255]
[1727998008091,0.164244,60885.0,60881.0,0.164253]
[1727998009152,0.16424,60887.0,60883.0,0.164249]
[1727998009368,0.164231,60890.0,60885.0,0.35121394]
[1727998009578,0.164231,60890.0,60885.0,0.164241]
[1727998009990,0.164234,60889.0,60885.0,0.164241]
[1727998011469,0.164234,60889.0,60885.0,0.165241]
[1727998011914,0.18998072,60889.0,60885.0,0.165241]
[1727998012550,0.18998072,60889.0,60885.0,0.166241]
[1727998012998,0.164236,60888.0,60885.0,0.002]
[1727998014104,0.164236,60888.0,60885.0,0.001]
[1727998014933,0.164236,60888.0,60882.0,0.0975]
[1727998015179,0.32847,60889.0,60885.0,0.003]
[1727998015440,0.164241,60887.0,60885.0,0.002]
[1727998015857,0.164241,60886.0,60882.0,0.10180996]
[1727998016062,0.164241,60886.0,60885.0,0.001]
[1727998016690,0.164241,60886.0,60885.0,0.002]
[1727998017120,0.164241,60886.0,60885.0,0.001]
[1727998017332,0.165241,60886.0,60885.0,0.002]
[1727998017545,0.165241,60886.0,60885.0,0.001]
[1727998017985,0.165241,60886.0,60885.0,0.004]
[1727998018205,0.164241,60886.0,60885.0,0.003]
[1727998018455,0.165241,60886.0,60885.0,0.001]
[1727998019456,0.243241,60886.0,60885.0,0.004]
[1727998019684,0.242241,60886.0,60885.0,0.003]
[1727998020222,0.242241,60886.0,60885.0,0.004]
[1727998020433,0.242241,60886.0,60885.0,0.003]
[1727998020434,0.34041149,60886.0,60885.0,0.003]
[1727998020644,0.53010072,60886.0,60885.0,0.003]
[1727998021082,0.53010072,60886.0,60877.0,0.000818]
[1727998021083,0.164262,60878.0,60877.0,0.000818]
[1727998022936,0.164262,60878.0,60877.0,0.002818]
[1727998023398,0.164262,60878.0,60877.0,0.003818]
[1727998025244,0.165898,60878.0,60877.0,0.003818]
[1727998025477,0.1916484,60878.0,60877.0,0.003818]
[1727998025981,0.2692484,60878.0,60877.0,0.003818]
[1727998029255,0.71850805,60878.0,60877.0,0.003818]
[1727998029709,0.76755385,60878.0,60877.0,0.003818]
[1727998029932,0.71850805,60878.0,60877.0,0.003818]
[1727998030602,0.71850805,60878.0,60877.0,0.002818]
[1727998030603,0.81850805,60878.0,60877.0,0.002818]
[1727998030824,1.1769182,60878.0,60877.0,0.000818]
[1727998031059,0.98994526,60878.0,60877.0,0.000818]
[1727998031305,0.98194526,60878.0,60877.0,0.000818]
[1727998031537,1.01746831,60878.0,60877.0,0.000818]
[1727998031745,0.89385308,60878.0,60877.0,0.000818]
[1727998032235,0.89385308,60878.0,60877.0,0.001818]
[1727998032236,0.89485308,60878.0,60877.0,0.001818]
[1727998032439,1.01646831,60878.0,60877.0,0.000818]
[1727998032673,0.88285308,60878.0,60877.0,0.000818]
[1727998032888,0.88385308,60878.0,60877.0,0.001818]
[1727998033109,0.89585308,60878.0,60877.0,0.001818]
[1727998033343,1.00646831,60878.0,60877.0,0.001818]
[1727998033613,0.89485308,60878.0,60877.0,0.001818]
[1727998033830,0.86910268,60878.0,60877.0,0.001818]
[1727998034494,0.99071791,60878.0,60877.0,0.000818]
[1727998034990,0.99171791,60878.0,60877.0,0.001818]
[1727998035216,0.86910268,60878.0,60877.0,0.001818]
[1727998035931,0.86010268,60878.0,60877.0,0.001818]
[1727998036144,0.87110268,60878.0,60877.0,0.001818]
[1727998036365,1.14785368,60878.0,60877.0,0.001818]
[1727998036577,0.53084094,60876.0,60870.0,0.000818]
[1727998036789,0.94534562,60876.0,60870.0,0.000818]
[1727998037003,0.97110316,60876.0,60870.0,0.000818]
[1727998038113,1.22164887,60876.0,60870.0,0.000818]
[1727998038364,1.22264887,60876.0,60875.0,0.001818]
[1727998038590,1.0933917,60876.0,60875.0,0.001818]
[1727998038847,1.0913917,60876.0,60875.0,0.001818]
[1727998039073,1.0903917,60876.0,60875.0,0.000818]
[1727998039287,1.36662614,60876.0,60875.0,0.000818]
[1727998039461,1.37762614,60876.0,60875.0,0.000818]
[1727998039669,0.95434562,60876.0,60875.0,0.000818]
[1727998039846,0.94534562,60876.0,60875.0,0.000818]
[1727998040077,0.95934562,60876.0,60875.0,0.000818]
[1727998040284,1.1183917,60876.0,60875.0,0.001818]
[1727998040520,0.97134562,60876.0,60875.0,0.001818]
[1727998040732,0.95934562,60876.0,60875.0,0.000818]
[1727998041140,1.01291435,60876.0,60875.0,0.001818]
[1727998041443,0.99710322,60876.0,60875.0,0.001818]
[1727998041674,0.99710322,60876.0,60875.0,0.000818]
[1727998041675,0.98510322,60876.0,60875.0,0.000818]
[1727998041901,0.99710322,60876.0,60875.0,0.001818]
[1727998042386,0.98310322,60876.0,60875.0,0.001818]
[1727998042622,0.97134562,60876.0,60875.0,0.001818]
[1727998042877,0.95734562,60876.0,60875.0,0.001818]
[1727998043360,0.95734562,60876.0,60875.0,0.000818]
[1727998043361,0.95934562,60876.0,60875.0,0.000818]
[1727998043595,0.97334562,60876.0,60875.0,0.000818]
[1727998044222,0.97173545,60876.0,60875.0,0.000818]
[1727998045747,0.99749311,60876.0,60875.0,0.000818]
[1727998046797,0.97173545,60876.0,60875.0,0.000818]
[1727998048563,0.96973545,60876.0,60875.0,0.000818]
[1727998049067,0.77245139,60876.0,60875.0,0.000818]
[1727998049290,0.96995247,60876.0,60875.0,0.000818]
[1727998049991,0.90550133,60876.0,60875.0,0.000818]
[1727998050473,0.78297953,60876.0,60875.0,0.000818]
[1727998054565,0.96995247,60876.0,60875.0,0.000818]
[1727998057090,0.99570903,60876.0,60875.0,0.000818]
[1727998058295,0.96995247,60876.0,60875.0,0.000818]
[1727998059490,0.97195247,60876.0,60875.0,0.000818]
[1727998059730,0.90770409,60876.0,60875.0,0.000818]
[1727998059931,0.71020301,60876.0,60875.0,0.000818]
[1727998060422,0.96348972,60876.0,60875.0,0.000818]
[1727998061644,1.02783407,60876.0,60875.0,0.000818]
[1727998062286,1.02783407,60876.0,60875.0,1e-06]
[1727998062695,0.89040626,60876.0,60875.0,1e-06]
[1727998063080,0.86464736,60876.0,60875.0,1e-06]
[1727998064520,0.88764736,60876.0,60875.0,1e-06]
[1727998065481,0.88564736,60876.0,60875.0,1e-06]
[1727998065743,0.88764736,60876.0,60875.0,1e-06]
[1727998065981,0.91340706,60876.0,60875.0,1e-06]
[1727998066215,1.07659377,60876.0,60875.0,1e-06]
[1727998066472,0.164281,60871.0,60870.0,0.000779]
[1727998066701,0.9418997,60871.0,60870.0,0.000779]
[1727998066914,1.21789478,60871.0,60870.0,0.000779]
[1727998067134,1.21778853,60871.0,60870.0,0.000779]
[1727998067376,1.23497601,60871.0,60870.0,0.000779]
[1727998067609,1.23482781,60871.0,60870.0,0.000779]
[1727998069276,1.24882781,60871.0,60870.0,0.000779]
[1727998069742,1.26282781,60871.0,60870.0,0.000779]
[1727998071619,1.26082781,60871.0,60870.0,0.000779]
[1727998071833,1.18502781,60871.0,60870.0,0.000779]
[1727998072517,1.18702781,60871.0,60870.0,0.000779]
[1727998073646,1.21278731,60871.0,60870.0,0.000779]
[1727998074612,0.9979589,60871.0,60870.0,0.000779]
[1727998074850,0.72211202,60871.0,60870.0,0.000779]
[1727998077635,0.74786954,60871.0,60870.0,0.000779]
[1727998078120,0.86052971,60871.0,60870.0,0.075979]
[1727998078588,1.00820121,60871.0,60870.0,0.075979]
[1727998078819,0.83477219,60871.0,60870.0,0.075979]
[1727998079264,0.80677219,60871.0,60870.0,0.000779]
[1727998079718,0.81077219,60871.0,60870.0,0.000779]
[1727998079946,0.81677219,60871.0,60870.0,0.000779]
[1727998080165,0.54092531,60871.0,60870.0,0.000779]
[1727998082827,0.34389222,60871.0,60870.0,0.091579]
[1727998083073,0.47439331,60871.0,60870.0,0.091579]
[1727998083311,0.22670474,60871.0,60870.0,0.091579]
[1727998085040,0.22670474,60871.0,60870.0,0.000779]
[1727998085268,0.41564745,60871.0,60870.0,0.000779]
[1727998085737,0.51564745,60871.0,60870.0,0.000779]
[1727998085993,0.59324745,60871.0,60870.0,0.000779]
[1727998086338,0.59488345,60871.0,60870.0,0.000779]
[1727998086817,0.66432745,60871.0,60870.0,0.000779]
[1727998087729,0.85140975,60871.0,60870.0,0.000779]
[1727998087952,0.84540975,60871.0,60870.0,0.000779]
[1727998088170,1.05702326,60871.0,60870.0,0.000779]
[1727998088394,1.33490779,60871.0,60870.0,0.000779]
[1727998088607,1.32090779,60871.0,60870.0,0.000779]
[1727998089084,1.33490779,60871.0,60870.0,0.000779]
[1727998089316,1.33090779,60871.0,60870.0,0.000779]
[1727998089549,1.24970779,60871.0,60870.0,0.000779]
[1727998089776,1.23570779,60871.0,60870.0,0.000779]
[1727998089997,1.27546747,60871.0,60870.0,0.000779]
[1727998091178,1.24970779,60871.0,60870.0,0.000779]
[1727998092274,0.77420975,60871.0,60870.0,0.000779]
[1727998094399,0.79996943,60871.0,60870.0,0.000779]
[1727998094872,0.80196943,60871.0,60870.0,0.000779]
[1727998095756,0.79996943,60871.0,60870.0,0.000779]